[Event "SS Manhem Chess Week 2022: Goteborg Open"]
[Site "Schackcentrum, Vegagatan 20, Gothenburg, Sweden"]
[Date "2022.08.13"]
[Round "5.11"]
[White "Imani Lasaki, Hamed"]
[Black "Jonbrink, Per-Olof"]
[Result "1-0"]
[TimeControl "15 minutes + 5 seconds per move from move one (Round 1 - 4) / 90 minutes + 30 seconds per move from move one (Round 5 - 8)"]
[WhiteFideId "1766970"]
[BlackFideId "1720163"]
[WhiteElo "1577"]
[BlackElo "1728"]

1. e4 {[%clk 01:30:49]} {[%emt 00:00:11]} e6 {[%clk 01:30:51]} {[%emt
00:00:10]} 2. d4 {[%clk 01:29:31]} {[%emt 00:01:47]} d5 {[%clk 01:31:04]}
{[%emt 00:00:17]} 3. e5 {[%clk 01:29:54]} {[%emt 00:00:07]} c5 {[%clk
01:31:19]} {[%emt 00:00:15]} 4. c3 {[%clk 01:28:54]} {[%emt 00:01:29]} Nc6
{[%clk 01:31:08]} {[%emt 00:00:42]} 5. Nf3 {[%clk 01:28:40]} {[%emt 00:00:44]}
Bd7 {[%clk 01:30:44]} {[%emt 00:00:54]} 6. Be2 {[%clk 01:28:29]} {[%emt
00:00:41]} Nge7 {[%clk 01:27:43]} {[%emt 00:03:31]} 7. O-O {[%clk 01:24:48]}
{[%emt 00:04:10]} Ng6 {[%clk 01:26:51]} {[%emt 00:01:23]} 8. Be3 {[%clk
01:21:43]} {[%emt 00:03:35]} Be7 {[%clk 01:22:12]} {[%emt 00:05:10]} 9. Na3
{[%clk 01:19:12]} {[%emt 00:03:00]} cxd4 {[%clk 01:20:47]} {[%emt 00:01:55]} 10.
cxd4 {[%clk 01:19:20]} {[%emt 00:00:22]} a6 {[%clk 01:20:56]} {[%emt 00:00:23]}
11. Nc2 {[%clk 01:18:42]} {[%emt 00:01:04]} O-O {[%clk 01:18:09]} {[%emt
00:03:17]} 12. a3 {[%clk 01:18:34]} {[%emt 00:00:38]} f6 {[%clk 01:16:26]}
{[%emt 00:02:13]} 13. Bd3 {[%clk 01:12:19]} {[%emt 00:06:44]} Be8 {[%clk
01:14:18]} {[%emt 00:02:38]} 14. Qe2 {[%clk 00:59:54]} {[%emt 00:12:54]} fxe5
{[%clk 01:08:38]} {[%emt 00:06:11]} 15. Bxg6 {[%clk 00:49:59]} {[%emt
00:10:25]} Bxg6 {[%clk 01:06:52]} {[%emt 00:02:16]} 16. Nxe5 {[%clk 00:49:52]}
{[%emt 00:00:37]} Bxc2 {[%clk 00:58:19]} {[%emt 00:09:03]} 17. Nxc6 {[%clk
00:46:53]} {[%emt 00:03:30]} bxc6 {[%clk 00:58:15]} {[%emt 00:00:33]} 18. Qxc2
{[%clk 00:47:07]} {[%emt 00:00:17]} Qb6 {[%clk 00:49:58]} {[%emt 00:08:47]} 19.
Rac1 {[%clk 00:45:12]} {[%emt 00:02:25]} Rfc8 {[%clk 00:47:40]} {[%emt
00:02:48]} 20. Rfe1 {[%clk 00:41:43]} {[%emt 00:03:58]} Bd6 {[%emt 00:10:40]}
21. g3 {[%clk 00:34:26]} {[%emt 00:05:10]} Rab8 {[%clk 00:35:25]} {[%emt
00:05:13]} 22. Re2 {[%emt 00:07:22]} Qc7 {[%clk 00:25:56]} {[%emt 00:03:59]} 23.
Qa4 {[%clk 00:30:40]} {[%emt 00:03:24]} e5 {[%emt 00:05:46]} 24. Qxa6 {[%clk
00:26:44]} {[%emt 00:02:13]} Ra8 {[%clk 00:15:30]} {[%emt 00:07:52]} 25. Qd3
{[%clk 00:27:02]} {[%emt 00:00:12]} e4 {[%clk 00:14:41]} {[%emt 00:01:20]} 26.
Qc3 {[%clk 00:24:58]} {[%emt 00:02:23]} Qb6 {[%clk 00:10:45]} {[%emt 00:04:37]}
27. Rec2 {[%clk 00:21:53]} {[%emt 00:03:35]} Rab8 {[%clk 00:08:58]} {[%emt
00:02:18]} 28. Qd2 {[%clk 00:19:57]} {[%emt 00:02:25]} Qb5 {[%clk 00:08:37]}
{[%emt 00:00:52]} 29. Bf4 {[%clk 00:18:35]} {[%emt 00:01:51]} Bxf4 {[%clk
00:07:51]} {[%emt 00:01:16]} 30. Qxf4 {[%clk 00:19:03]} {[%emt 00:00:02]} Qd3
{[%clk 00:06:43]} {[%emt 00:01:37]} 31. Rxc6 {[%clk 00:19:02]} {[%emt
00:00:32]} Rd8 {[%clk 00:06:17]} {[%emt 00:00:56]} 32. Qe5 {[%clk 00:14:37]}
{[%emt 00:04:56]} Rb7 {[%clk 00:04:03]} {[%emt 00:02:44]} 33. Rc7 {[%clk
00:13:02]} {[%emt 00:02:05]} Rxc7 {[%clk 00:03:00]} {[%emt 00:01:33]} 34. Rxc7
{[%clk 00:13:00]} {[%emt 00:00:32]} Qd1+ {[%clk 00:02:13]} {[%emt 00:01:18]} 35.
Kg2 {[%clk 00:13:27]} {[%emt 00:00:03]} Qg4 {[%clk 00:02:22]} {[%emt 00:00:21]}
36. Re7 {[%clk 00:11:24]} {[%emt 00:02:33]} h5 {[%clk 00:02:00]} {[%emt
00:00:51]} 37. Qe6+ {[%clk 00:08:08]} {[%emt 00:03:46]} 1-0

[Event "SS Manhem Chess Week 2022: Goteborg Open"]
[Site "Schackcentrum, Vegagatan 20, Gothenburg, Sweden"]
[Date "2022.08.13"]
[Round "5.12"]
[White "Al Saab, Ranny"]
[Black "Johansson, Jan"]
[Result "0-1"]
[TimeControl "15 minutes + 5 seconds per move from move one (Round 1 - 4) / 90 minutes + 30 seconds per move from move one (Round 5 - 8)"]
[WhiteFideId "1768360"]
[BlackFideId "1747568"]
[WhiteElo "1516"]
[BlackElo "1666"]

1. e4 {[%clk 01:30:57]} {[%emt 00:00:02]} c6 {[%clk 01:30:39]} {[%emt
00:00:21]} 2. d4 {[%clk 01:31:25]} {[%emt 00:00:03]} d5 {[%clk 01:30:44]}
{[%emt 00:00:23]} 3. exd5 {[%clk 01:31:52]} {[%emt 00:00:03]} cxd5 {[%clk
01:30:57]} {[%emt 00:00:17]} 4. Nf3 {[%clk 01:31:59]} {[%emt 00:00:23]} Bg4
{[%clk 01:29:48]} {[%emt 00:01:39]} 5. Be2 {[%clk 01:32:10]} {[%emt 00:00:19]}
Nf6 {[%clk 01:29:03]} {[%emt 00:01:15]} 6. Nc3 {[%clk 01:30:01]} {[%emt
00:02:41]} e6 {[%clk 01:28:20]} {[%emt 00:01:12]} 7. h3 {[%clk 01:30:19]}
{[%emt 00:00:12]} Bxf3 {[%clk 01:27:29]} {[%emt 00:01:20]} 8. Bxf3 {[%clk
01:30:47]} {[%emt 00:00:02]} Nc6 {[%clk 01:23:09]} {[%emt 00:04:50]} 9. Be3
{[%clk 01:24:59]} {[%emt 00:06:19]} Bd6 {[%clk 01:17:32]} {[%emt 00:06:07]} 10.
Qd2 {[%clk 01:22:13]} {[%emt 00:03:17]} a6 {[%clk 01:16:16]} {[%emt 00:01:45]}
11. O-O {[%clk 01:20:50]} {[%emt 00:01:52]} Qc7 {[%clk 01:14:23]} {[%emt
00:02:23]} 12. Rfe1 {[%clk 01:12:05]} {[%emt 00:09:15]} O-O {[%clk 01:14:37]}
{[%emt 00:00:16]} 13. Bg5 {[%clk 01:10:53]} {[%emt 00:01:42]} Nd7 {[%clk
01:14:42]} {[%emt 00:00:24]} 14. Bg4 {[%clk 01:07:02]} {[%emt 00:04:21]} Rfe8
{[%clk 01:08:27]} {[%emt 00:06:46]} 15. Rad1 {[%clk 00:57:17]} {[%emt
00:10:15]} Nf8 {[%clk 01:08:19]} {[%emt 00:00:38]} 16. a3 {[%clk 00:56:58]}
{[%emt 00:00:49]} Rac8 {[%clk 01:07:12]} {[%emt 00:01:36]} 17. Nxd5 {[%clk
00:52:44]} {[%emt 00:04:44]} exd5 {[%clk 01:03:35]} {[%emt 00:04:07]} 18. Bxc8
{[%clk 00:52:33]} {[%emt 00:00:42]} Rxe1+ {[%clk 01:02:10]} {[%emt 00:01:55]}
19. Rxe1 {[%clk 00:52:54]} {[%emt 00:00:09]} Qxc8 {[%clk 01:02:19]} {[%emt
00:00:20]} 20. b4 {[%clk 00:51:39]} {[%emt 00:01:45]} Ne6 {[%clk 01:01:53]}
{[%emt 00:00:56]} 21. Be3 {[%clk 00:51:03]} {[%emt 00:01:06]} b5 {[%clk
01:00:51]} {[%emt 00:01:34]} 22. c3 {[%clk 00:50:27]} {[%emt 00:01:06]} Ne7
{[%clk 00:53:38]} {[%emt 00:07:42]} 23. Ra1 {[%clk 00:44:37]} {[%emt 00:06:21]}
Qc6 {[%clk 00:53:04]} {[%emt 00:01:05]} 24. Qd3 {[%emt 00:03:12]} g6 {[%clk
00:49:38]} {[%emt 00:03:53]} 25. g3 {[%clk 00:40:14]} {[%emt 00:02:10]} Nf5
{[%clk 00:43:47]} {[%emt 00:06:23]} 26. Kg2 {[%clk 00:38:31]} {[%emt 00:02:07]}
Qc7 {[%clk 00:41:41]} {[%emt 00:02:43]} 27. a4 {[%clk 00:35:41]} {[%emt
00:03:20]} Bxg3 {[%clk 00:25:41]} {[%emt 00:16:30]} 28. axb5 {[%clk 00:32:31]}
{[%emt 00:03:41]} axb5 {[%clk 00:24:37]} {[%emt 00:01:34]} 29. Ra8+ {[%clk
00:32:54]} {[%emt 00:00:06]} Kg7 {[%clk 00:24:51]} {[%emt 00:00:16]} 30. Bh6+
{[%clk 00:32:20]} {[%emt 00:01:05]} Kxh6 {[%clk 00:23:46]} {[%emt 00:01:34]} 31.
fxg3 {[%clk 00:32:43]} {[%emt 00:00:07]} Kg7 {[%clk 00:20:28]} {[%emt
00:03:48]} 32. Ra5 {[%clk 00:26:58]} {[%emt 00:06:15]} Nd6 {[%clk 00:20:19]}
{[%emt 00:00:40]} 33. h4 {[%clk 00:21:01]} {[%emt 00:06:27]} h5 {[%clk
00:20:02]} {[%emt 00:00:48]} 34. Kh3 {[%clk 00:11:29]} {[%emt 00:10:02]} Nc4
{[%clk 00:16:49]} {[%emt 00:03:42]} 35. Rxb5 {[%clk 00:11:02]} {[%emt
00:00:57]} Qd7 {[%clk 00:17:04]} {[%emt 00:00:16]} 36. Kh2 {[%clk 00:09:59]}
{[%emt 00:01:33]} Qxb5 {[%clk 00:17:23]} {[%emt 00:00:11]} 37. Qc2 {[%clk
00:10:19]} {[%emt 00:00:05]} Ne3 {[%clk 00:16:24]} {[%emt 00:01:33]} 38. Qd2
{[%clk 00:10:27]} {[%emt 00:00:22]} Nf1+ {[%emt 00:00:20]} 0-1

[Event "SS Manhem Chess Week 2022: Goteborg Open"]
[Site "Schackcentrum, Vegagatan 20, Gothenburg, Sweden"]
[Date "2022.08.13"]
[Round "5.14"]
[White "Mohammed, Safian Haj"]
[Black "Persson, Michael"]
[Result "1-0"]
[TimeControl "15 minutes + 5 seconds per move from move one (Round 1 - 4) / 90 minutes + 30 seconds per move from move one (Round 5 - 8)"]
[WhiteFideId "1729276"]
[BlackFideId "1764179"]
[WhiteElo "1794"]
[BlackElo "1267"]

1. e4 {[%clk 01:29:56]} {[%emt 00:01:04]} e5 {[%clk 01:30:52]} {[%emt
00:00:08]} 2. Nf3 {[%clk 01:30:03]} {[%emt 00:00:23]} Nc6 {[%clk 01:31:12]}
{[%emt 00:00:10]} 3. Bb5 {[%clk 01:30:06]} {[%emt 00:00:28]} a6 {[%clk
01:30:23]} {[%emt 00:01:18]} 4. Ba4 {[%clk 01:29:14]} {[%emt 00:01:22]} Nf6
{[%clk 01:29:14]} {[%emt 00:01:39]} 5. O-O {[%clk 01:29:19]} {[%emt 00:00:25]}
d6 {[%clk 01:27:48]} {[%emt 00:01:57]} 6. Re1 {[%clk 01:29:28]} {[%emt
00:00:18]} Bd7 {[%clk 01:28:13]} {[%emt 00:00:06]} 7. c3 {[%clk 01:29:47]}
{[%emt 00:00:11]} b5 {[%clk 01:28:08]} {[%emt 00:00:35]} 8. Bb3 {[%clk
01:30:09]} {[%emt 00:00:08]} Be7 {[%clk 01:24:56]} {[%emt 00:03:41]} 9. d4
{[%clk 01:30:14]} {[%emt 00:00:26]} O-O {[%clk 01:25:09]} {[%emt 00:00:17]} 10.
Nbd2 {[%clk 01:30:24]} {[%emt 00:00:19]} Re8 {[%clk 01:24:21]} {[%emt
00:01:19]} 11. h3 {[%clk 01:27:11]} {[%emt 00:03:42]} a5 {[%clk 01:20:28]}
{[%emt 00:04:24]} 12. Ng5 {[%emt 00:07:32]} Rf8 13. Nf1 {[%clk 01:19:13]}
{[%emt 00:04:09]} Qc8 {[%clk 01:13:45]} {[%emt 00:05:00]} 14. Ng3 {[%clk
01:17:37]} {[%emt 00:02:06]} h6 {[%clk 01:07:31]} {[%emt 00:06:44]} 15. Nf3
{[%clk 01:17:53]} {[%emt 00:00:14]} Bxh3 {[%clk 00:59:45]} {[%emt 00:08:16]} 16.
gxh3 {[%clk 01:18:05]} {[%emt 00:00:18]} Qxh3 {[%clk 01:00:04]} {[%emt
00:00:11]} 17. Qe2 {[%clk 01:15:43]} {[%emt 00:02:53]} Ng4 {[%clk 00:55:20]}
{[%emt 00:05:14]} 18. Qf1 {[%clk 01:15:42]} {[%emt 00:00:31]} Qxf1+ {[%clk
00:55:41]} {[%emt 00:00:09]} 19. Kxf1 {[%clk 01:15:28]} {[%emt 00:00:43]} Rac8
{[%clk 00:54:29]} {[%emt 00:01:41]} 20. Bd5 {[%clk 01:13:53]} {[%emt 00:02:06]}
Nd8 {[%clk 00:52:43]} {[%emt 00:02:16]} 21. a4 {[%clk 01:12:45]} {[%emt
00:01:38]} c6 {[%clk 00:52:03]} {[%emt 00:01:11]} 22. Bb3 {[%clk 01:13:03]}
{[%emt 00:00:12]} Nb7 {[%clk 00:51:58]} {[%emt 00:00:35]} 23. Kg2 {[%clk
01:11:16]} {[%emt 00:02:16]} Bf6 {[%clk 00:49:12]} {[%emt 00:03:14]} 24. Nh5
{[%clk 01:10:26]} {[%emt 00:01:22]} Be7 {[%clk 00:48:24]} {[%emt 00:01:19]} 25.
Kg3 {[%clk 01:09:56]} {[%emt 00:00:59]} Nf6 {[%clk 00:46:17]} {[%emt 00:02:37]}
26. Nxf6+ {[%clk 01:09:41]} {[%emt 00:00:46]} Bxf6 {[%clk 00:46:41]} {[%emt
00:00:06]} 27. Be3 {[%clk 01:08:33]} {[%emt 00:01:37]} Rfe8 {[%clk 00:43:45]}
{[%emt 00:03:26]} 28. d5 {[%clk 01:07:28]} {[%emt 00:01:35]} b4 {[%clk
00:38:45]} {[%emt 00:05:31]} 29. dxc6 {[%clk 01:06:25]} {[%emt 00:01:33]} Rxc6
{[%clk 00:38:47]} {[%emt 00:00:27]} 30. cxb4 {[%clk 01:06:23]} {[%emt
00:00:31]} axb4 {[%clk 00:38:25]} {[%emt 00:00:52]} 31. a5 {[%clk 01:06:00]}
{[%emt 00:00:53]} Ra6 {[%clk 00:37:35]} {[%emt 00:01:21]} 32. Bb6 {[%clk
01:05:59]} {[%emt 00:00:30]} Bd8 {[%clk 00:36:44]} {[%emt 00:01:21]} 33. Bc4
{[%clk 01:05:43]} {[%emt 00:00:47]} Rxa5 {[%clk 00:28:14]} {[%emt 00:09:01]} 34.
Bxa5 {[%clk 01:05:32]} {[%emt 00:00:41]} Nxa5 {[%clk 00:28:11]} {[%emt
00:00:33]} 35. Bd5 {[%clk 01:05:43]} {[%emt 00:00:19]} Bc7 {[%clk 00:24:08]}
{[%emt 00:04:33]} 36. Rec1 {[%clk 01:04:49]} {[%emt 00:01:23]} Bb6 {[%clk
00:23:31]} {[%emt 00:01:08]} 37. Ra4 {[%clk 00:57:36]} {[%emt 00:07:43]} Rb8
{[%clk 00:23:02]} {[%emt 00:00:59]} 38. Rca1 {[%clk 00:55:50]} {[%emt
00:02:16]} Nb7 {[%clk 00:21:59]} {[%emt 00:01:32]} 39. Rxb4 {[%clk 00:54:16]}
{[%emt 00:02:04]} Nc5 {[%clk 00:21:16]} {[%emt 00:01:13]} 40. Ra8 {[%clk
00:53:11]} {[%emt 00:01:35]} Rxa8 {[%clk 00:20:56]} {[%emt 00:00:50]} 41. Bxa8
{[%clk 00:53:25]} {[%emt 00:00:17]} Bc7 {[%clk 00:19:55]} {[%emt 00:01:31]} 42.
Ne1 {[%clk 00:52:04]} {[%emt 00:01:51]} Ba5 {[%clk 00:19:35]} {[%emt 00:00:50]}
43. Rb8+ {[%clk 00:52:22]} {[%emt 00:00:11]} Kh7 {[%clk 00:19:55]} {[%emt
00:00:11]} 44. b4 {[%clk 00:52:23]} {[%emt 00:00:30]} Nxe4+ {[%clk 00:19:52]}
{[%emt 00:00:33]} 45. Bxe4+ {[%clk 00:52:33]} {[%emt 00:00:19]} 1-0

[Event "SS Manhem Chess Week 2022: Goteborg Open"]
[Site "Schackcentrum, Vegagatan 20, Gothenburg, Sweden"]
[Date "2022.08.13"]
[Round "5.15"]
[White "Eldh, Hjalmar"]
[Black "Andreasson, Leo"]
[Result "1-0"]
[TimeControl "15 minutes + 5 seconds per move from move one (Round 1 - 4) / 90 minutes + 30 seconds per move from move one (Round 5 - 8)"]
[WhiteFideId "1767968"]
[BlackFideId "1768980"]
[WhiteElo "1711"]
[BlackElo "1132"]

1. e4 {[%clk 01:30:57]} {[%emt 00:00:02]} e6 {[%clk 01:31:00]} {[%emt
00:00:02]} 2. b3 {[%clk 01:31:17]} {[%emt 00:00:09]} d5 {[%clk 01:31:12]}
{[%emt 00:00:18]} 3. Bb2 {[%clk 01:31:36]} {[%emt 00:00:10]} c5 {[%clk
01:30:50]} {[%emt 00:00:52]} 4. exd5 {[%clk 01:31:56]} {[%emt 00:00:10]} exd5
{[%clk 01:31:10]} {[%emt 00:00:10]} 5. Nf3 {[%clk 01:32:14]} {[%emt 00:00:11]}
Nd7 {[%clk 01:29:49]} {[%emt 00:01:52]} 6. Bb5 {[%clk 01:30:49]} {[%emt
00:01:55]} a6 {[%clk 01:29:42]} {[%emt 00:00:38]} 7. Qe2+ {[%clk 01:29:36]}
{[%emt 00:01:41]} Qe7 {[%clk 01:29:25]} {[%emt 00:00:47]} 8. Bd3 {[%clk
01:29:36]} {[%emt 00:00:30]} Qxe2+ {[%clk 01:29:28]} {[%emt 00:00:27]} 9. Bxe2
{[%clk 01:29:47]} {[%emt 00:00:20]} Ngf6 {[%clk 01:28:53]} {[%emt 00:01:06]} 10.
Nc3 {[%clk 01:29:21]} {[%emt 00:00:55]} Bd6 {[%clk 01:27:56]} {[%emt 00:01:28]}
11. d4 {[%clk 01:28:35]} {[%emt 00:01:15]} b6 {[%clk 01:26:39]} {[%emt
00:01:48]} 12. O-O {[%clk 01:25:54]} {[%emt 00:03:10]} O-O {[%clk 01:27:03]}
{[%emt 00:00:05]} 13. Rad1 {[%clk 01:26:01]} {[%emt 00:00:22]} Bb7 {[%clk
01:25:56]} {[%emt 00:01:39]} 14. Nh4 {[%clk 01:22:09]} {[%emt 00:04:21]} cxd4
{[%clk 01:23:56]} {[%emt 00:02:31]} 15. Rxd4 {[%clk 01:22:21]} {[%emt
00:00:17]} Bc5 {[%clk 01:24:09]} {[%emt 00:00:17]} 16. Rd2 {[%clk 01:22:01]}
{[%emt 00:00:51]} Rad8 {[%clk 01:23:36]} {[%emt 00:01:02]} 17. Rfd1 {[%clk
01:20:28]} {[%emt 00:02:02]} Ne5 {[%clk 01:23:36]} {[%emt 00:00:32]} 18. Nxd5
{[%clk 01:18:11]} {[%emt 00:02:47]} Bxf2+ {[%clk 01:11:07]} {[%emt 00:12:58]}
19. Kxf2 {[%clk 01:18:08]} {[%emt 00:00:33]} Ne4+ {[%clk 01:11:21]} {[%emt
00:00:17]} 20. Ke1 {[%clk 01:17:34]} {[%emt 00:01:03]} Nxd2 {[%clk 01:11:22]}
{[%emt 00:00:29]} 21. Ne7+ {[%clk 01:17:47]} {[%emt 00:00:17]} Kh8 {[%clk
01:11:35]} {[%emt 00:00:17]} 22. Rxd2 {[%clk 01:16:57]} {[%emt 00:01:19]} Rxd2
{[%clk 01:11:48]} {[%emt 00:00:18]} 23. Kxd2 {[%clk 01:17:20]} {[%emt
00:00:07]} Ng6 {[%clk 01:08:37]} {[%emt 00:03:41]} 24. Nhf5 {[%clk 01:12:22]}
{[%emt 00:05:27]} f6 {[%clk 01:06:08]} {[%emt 00:02:58]} 25. Nxg6+ {[%clk
01:11:38]} {[%emt 00:01:16]} hxg6 {[%clk 01:06:29]} {[%emt 00:00:07]} 26. Nh4
{[%clk 01:10:07]} {[%emt 00:02:03]} Rd8+ {[%clk 01:06:14]} {[%emt 00:00:47]} 27.
Bd3 {[%clk 01:09:50]} {[%emt 00:00:43]} g5 {[%clk 01:05:41]} {[%emt 00:01:05]}
28. Ng6+ {[%clk 01:09:11]} {[%emt 00:01:07]} Kg8 {[%clk 01:05:51]} {[%emt
00:00:21]} 29. Ke3 {[%clk 01:05:54]} {[%emt 00:03:47]} Re8+ {[%clk 01:04:26]}
{[%emt 00:01:56]} 30. Kf2 {[%clk 01:06:12]} {[%emt 00:00:12]} Be4 {[%clk
01:04:37]} {[%emt 00:00:19]} 31. h4 {[%clk 01:04:29]} {[%emt 00:02:13]} Bxd3
{[%clk 01:04:50]} {[%emt 00:00:18]} 32. cxd3 {[%clk 01:04:54]} {[%emt
00:00:05]} Kh7 {[%clk 01:04:41]} {[%emt 00:00:39]} 33. h5 {[%clk 01:04:39]}
{[%emt 00:00:45]} Rc8 {[%clk 01:02:41]} {[%emt 00:02:31]} 34. Bd4 {[%clk
01:03:12]} {[%emt 00:01:56]} Rc2+ {[%clk 01:02:21]} {[%emt 00:00:50]} 35. Kf3
{[%clk 01:03:37]} {[%emt 00:00:05]} Rxa2 {[%clk 01:02:17]} {[%emt 00:00:34]} 36.
Bxb6 {[%clk 01:03:39]} {[%emt 00:00:28]} Ra3 {[%clk 01:02:07]} {[%emt
00:00:40]} 37. Ke4 {[%clk 01:00:15]} {[%emt 00:03:54]} Rxb3 {[%clk 01:02:19]}
{[%emt 00:00:19]} 38. Bc5 {[%clk 00:59:06]} {[%emt 00:01:35]} f5+ {[%clk
01:01:29]} {[%emt 00:01:24]} 39. Kd4 {[%clk 00:58:31]} {[%emt 00:01:04]} Kg8
{[%clk 01:00:18]} {[%emt 00:01:42]} 40. Ne7+ {[%clk 00:58:42]} {[%emt
00:00:19]} Kf7 {[%clk 00:59:48]} {[%emt 00:01:00]} 41. Nxf5 {[%clk 00:59:05]}
{[%emt 00:00:06]} Kf6 {[%clk 00:58:29]} {[%emt 00:01:49]} 42. Ne3 {[%clk
00:54:50]} {[%emt 00:04:44]} Ke6 {[%clk 00:56:08]} {[%emt 00:02:52]} 43. Kc4
{[%clk 00:54:04]} {[%emt 00:01:15]} Rb1 {[%clk 00:55:17]} {[%emt 00:01:22]} 44.
d4 {[%clk 00:52:48]} {[%emt 00:01:46]} Re1 {[%clk 00:52:59]} {[%emt 00:02:49]}
45. d5+ {[%clk 00:51:58]} {[%emt 00:01:21]} Kd7 {[%clk 00:53:06]} {[%emt
00:00:22]} 46. Kd3 {[%clk 00:50:49]} {[%emt 00:01:40]} a5 {[%clk 00:52:59]}
{[%emt 00:00:38]} 47. Bf8 {[%clk 00:49:48]} {[%emt 00:01:28]} Rh1 {[%clk
00:52:22]} {[%emt 00:01:08]} 48. g4 {[%clk 00:49:54]} {[%emt 00:00:24]} a4
{[%clk 00:52:18]} {[%emt 00:00:35]} 49. Bxg7 {[%clk 00:50:13]} {[%emt
00:00:11]} a3 {[%clk 00:51:18]} {[%emt 00:01:30]} 50. Ke4 {[%clk 00:50:24]}
{[%emt 00:00:18]} a2 {[%clk 00:51:12]} {[%emt 00:00:37]} 51. Kf5 {[%clk
00:50:40]} {[%emt 00:00:14]} a1=Q {[%clk 00:51:11]} {[%emt 00:00:32]} 52. Bxa1
{[%clk 00:51:03]} {[%emt 00:00:07]} Rxa1 {[%clk 00:51:33]} {[%emt 00:00:08]} 53.
Kxg5 {[%clk 00:51:27]} {[%emt 00:00:04]} Ke7 {[%clk 00:51:29]} {[%emt
00:00:35]} 54. Kg6 {[%clk 00:51:39]} {[%emt 00:00:17]} Ra6+ {[%clk 00:51:42]}
{[%emt 00:00:18]} 55. Kg7 {[%clk 00:51:51]} {[%emt 00:00:18]} Rf6 {[%clk
00:51:36]} {[%emt 00:00:35]} 56. d6+ {[%clk 00:52:12]} {[%emt 00:00:09]} Rxd6
{[%clk 00:50:41]} {[%emt 00:01:25]} 57. Nf5+ {[%clk 00:52:37]} {[%emt
00:00:05]} 1-0

[Event "SS Manhem Chess Week 2022: Goteborg Open"]
[Site "Schackcentrum, Vegagatan 20, Gothenburg, Sweden"]
[Date "2022.08.13"]
[Round "5.16"]
[White "Andreasson, Henrik"]
[Black "Sundin, Sven-Ingvar"]
[Result "0-1"]
[TimeControl "15 minutes + 5 seconds per move from move one (Round 1 - 4) / 90 minutes + 30 seconds per move from move one (Round 5 - 8)"]
[WhiteFideId "1766082"]
[BlackFideId "1724517"]
[WhiteElo "1126"]
[BlackElo "1637"]

1. d4 {[%clk 01:30:56]} {[%emt 00:00:04]} d5 {[%clk 01:30:36]} {[%emt
00:00:24]} 2. c4 {[%clk 01:31:20]} {[%emt 00:00:06]} c6 {[%clk 01:30:56]}
{[%emt 00:00:09]} 3. Nf3 {[%clk 01:31:17]} {[%emt 00:00:34]} dxc4 {[%clk
01:31:03]} {[%emt 00:00:24]} 4. e3 {[%clk 01:30:46]} {[%emt 00:01:00]} b5
{[%clk 01:31:23]} {[%emt 00:00:10]} 5. b3 {[%clk 01:29:02]} {[%emt 00:02:14]}
a5 {[%clk 01:29:05]} {[%emt 00:02:47]} 6. bxc4 {[%clk 01:28:24]} {[%emt
00:01:10]} b4 {[%clk 01:29:12]} {[%emt 00:00:22]} 7. a3 {[%clk 01:27:08]}
{[%emt 00:01:46]} bxa3 {[%clk 01:27:27]} {[%emt 00:02:15]} 8. Bxa3 {[%clk
01:25:55]} {[%emt 00:01:43]} Nf6 {[%clk 01:27:23]} {[%emt 00:00:33]} 9. Nc3
{[%clk 01:24:19]} {[%emt 00:02:06]} g6 {[%clk 01:25:14]} {[%emt 00:02:39]} 10.
Bd3 {[%clk 01:19:37]} {[%emt 00:05:12]} Bg7 {[%clk 01:25:15]} {[%emt 00:00:28]}
11. h3 {[%clk 01:18:39]} {[%emt 00:01:29]} O-O {[%clk 01:25:11]} {[%emt
00:00:33]} 12. O-O {[%clk 01:17:40]} {[%emt 00:01:30]} Re8 {[%clk 01:24:50]}
{[%emt 00:00:50]} 13. Qb3 {[%clk 01:16:50]} {[%emt 00:01:21]} Qc7 {[%clk
01:22:28]} {[%emt 00:02:52]} 14. Ne5 {[%clk 01:13:16]} {[%emt 00:04:04]} Nbd7
{[%clk 01:22:20]} {[%emt 00:00:38]} 15. Nf3 {[%clk 01:12:47]} {[%emt 00:01:00]}
e5 {[%clk 01:21:29]} {[%emt 00:01:20]} 16. Bc2 {[%clk 01:05:19]} {[%emt
00:07:59]} exd4 {[%clk 01:12:32]} {[%emt 00:09:27]} 17. exd4 {[%clk 01:02:39]}
{[%emt 00:03:10]} Nb6 {[%clk 01:11:17]} {[%emt 00:01:44]} 18. Ng5 {[%clk
01:02:09]} {[%emt 00:01:00]} Be6 {[%clk 01:10:33]} {[%emt 00:01:15]} 19. Nxe6
{[%clk 01:01:04]} {[%emt 00:01:36]} Rxe6 {[%clk 01:10:52]} {[%emt 00:00:10]} 20.
Rfe1 {[%clk 00:58:46]} {[%emt 00:02:49]} Rb8 {[%clk 01:04:31]} {[%emt
00:06:51]} 21. Rxe6 {[%clk 00:56:03]} {[%emt 00:03:13]} fxe6 {[%clk 01:04:48]}
{[%emt 00:00:13]} 22. Rb1 {[%clk 00:56:08]} {[%emt 00:00:24]} Nfd7 {[%clk
01:01:57]} {[%emt 00:03:21]} 23. c5 {[%clk 00:54:25]} {[%emt 00:02:15]} Nd5
{[%clk 01:00:54]} {[%emt 00:01:31]} 24. Qc4 {[%clk 00:53:57]} {[%emt 00:00:58]}
Kf7 {[%clk 00:56:38]} {[%emt 00:04:46]} 25. Nxd5 {[%clk 00:52:57]} {[%emt
00:01:31]} exd5 {[%clk 00:56:47]} {[%emt 00:00:20]} 26. Qd3 {[%clk 00:52:07]}
{[%emt 00:01:20]} Rxb1+ {[%clk 00:56:08]} {[%emt 00:01:10]} 27. Bxb1 {[%clk
00:50:11]} {[%emt 00:02:26]} Qf4 {[%clk 00:52:31]} {[%emt 00:04:05]} 28. Bb2
{[%clk 00:49:08]} {[%emt 00:01:32]} Nxc5 {[%clk 00:48:51]} {[%emt 00:04:12]} 29.
dxc5 {[%clk 00:44:56]} {[%emt 00:04:28]} Bxb2 {[%clk 00:49:17]} {[%emt
00:00:16]} 30. Bc2 {[%clk 00:35:50]} {[%emt 00:09:37]} Bd4 {[%clk 00:49:21]}
{[%emt 00:00:26]} 31. Qe2 {[%clk 00:34:43]} {[%emt 00:01:37]} Bxc5 {[%clk
00:48:07]} {[%emt 00:01:44]} 32. g3 {[%clk 00:34:52]} {[%emt 00:00:19]} Qxg3+
{[%clk 00:47:30]} {[%emt 00:01:09]} 33. Kf1 {[%clk 00:34:49]} {[%emt 00:00:33]}
Qxh3+ {[%clk 00:47:35]} {[%emt 00:00:25]} 34. Ke1 {[%emt 00:00:17]} Bb4+ {[%emt
00:00:36]} 0-1